[Event "34th MPL National U14G-ch 2022"]
[Site "Ahmedabad"]
[Date "2022.05.12"]
[Round "8.2"]
[White "Jeevika S"]
[Black "Mrittika Mallick"]
[Result "0-1"]
[ECO "B90"]
[WhiteElo "1433"]
[BlackElo "1982"]
[Annotator "TA"]
[PlyCount "138"]
[EventDate "2022.05.09"]
[EventType "swiss"]
[EventCountry "IND"]
[SourceTitle "playchess.com"]
[Source "ChessBase"]
[SourceQuality "1"]
[TimeControl "5400+30"]

{[%evp 20,137,10,-77,0,-10,-9,-10,21,12,22,13,7,5,86,30,24,23,10,17,5,2,54,-21,102,0,22,-41,133,18,8,9,69,0,0,0,0,0,0,-17,0,-119,-126,-112,-120,-143,-144,-129,-62,-110,-84,-101,-79,-97,-81,-106,-65,-65,-56,-66,-65,-65,-65,-65,-65,-65,-65,-71,-72,-88,-32,-206,-198,-170,-32,-32,-32,-32,-32,-32,-32,-32,-32,-247,-240,-447,-414,-894,-836,-821,-757,-505,-505,-1874,-2017,-6199,-6050,-29980,-29980,-29971,-29972,-29985,-29986,-29986,-29987,-29988,-29989,-29989,-29990,-29992,-29989,-29993,-29993,-29995,-29996,-29997,-29998,-29998,-29999,-29999]} 1. e4 {[%emt 0:00:08]} c5 {[%emt 0:00:28]} 2. Nf3 {[%emt 0:00:06]} d6 {[%emt 0:00:19]} 3. d4 {[%emt 0:00:05]} cxd4 {[%emt 0:00:06]} 4. Nxd4 {[%emt 0:00:05]} Nf6 {[%emt 0:00:09]} 5. Nc3 {[%emt 0:00:06]} a6 {[%emt 0:00:05]} 6. Be3 {[%emt 0:00:06]} e5 {[%emt 0:00:13]} 7. Nb3 {[%emt 0:00:07]} Be7 {[%emt 0:00:21]} 8. f3 {[%emt 0:00:11]} Be6 {[%emt 0:00:29]} 9. Qd2 {[%emt 0:00:16]} Nbd7 {[%emt 0:00:35]} 10. O-O-O {[%emt 0:00:38]} b5 {[%emt 0:00:31]} 11. Qf2 {[%emt 0:03:15]} (11. a3 $11) 11... Qc7 {[%emt 0:05:16] B90: Sicilian Najdorf: Unusual White 6th moves, 6 Be3 Ng4 and 6 Be3 e5.} (11... b4 $17 12. Nd5 Bxd5 13. exd5 a5) 12. Kb1 {[%emt 0:02:14]} b4 {[%emt 0:04:07]} 13. Nd5 {[%emt 0:03:24]} Nxd5 {[%emt 0:01:32] The position is equal.} (13... Bxd5 $5 14. exd5 O-O $11) 14. exd5 {[%emt 0:00:15]} Bf5 {[%emt 0:00:05]} 15. g4 {[%emt 0:02:16]} Bg6 {[%emt 0:00:14]} 16. h4 $36 {[%emt 0:02:08][%mdl 2048] White has some pressure.} h6 {[%emt 0:01:54] [#]} (16... h5 $1 $11) 17. h5 $146 {[%emt 0:04:27]} (17. f4 $1 $16) ({Predecessor:} 17. Bd3 Bxd3 18. Rxd3 a5 19. f4 a4 20. Nc1 Nf6 21. Qg2 Nd7 22. Ne2 Rc8 23. Ng3 {1-0 (35) Cai,Y (1791)-Wu,Y (2107) Wuxi 2016}) 17... Bh7 $11 {[%emt 0:00:12]} 18. Bd3 {[%emt 0:01:06]} Bxd3 {[%emt 0:06:41]} 19. Rxd3 {[%emt 0:01:10]} a5 {[%emt 0:03:19]} 20. Nd2 {[%emt 0:06:39]} Nf6 {[%emt 0:06:35]} (20... a4 $11) 21. Ne4 {[%emt 0:04:01]} (21. Nf1 $1 $14) 21... Qc4 {[%emt 0:09:53]} (21... Nxe4 $1 $11 22. fxe4 Qc4) 22. Nxf6+ {[%emt 0:07:19]} ({Only move:} 22. Ng3 $1 $16) 22... Bxf6 {[%emt 0:00:35]} 23. Re1 {[%emt 0:07:16]} (23. f4 $11) 23... Kd7 $2 {[%emt 0:06:42] [#]} (23... O-O $15) 24. Bc1 {[%emt 0:10:52]} (24. f4 $1 $16 {[%cal Rf4e5]}) 24... Rhe8 {[%emt 0:10:15]} 25. Re4 {[%emt 0:05:30]} Qa6 {[%emt 0:02:19]} (25... Qb5 $11) 26. Qg2 {[%emt 0:02:48]} (26. f4 $14 exf4 27. Rxf4 (27. Qxf4 Rxe4 28. Qxe4 Rh8 $11)) 26... Bg5 $1 {[%emt 0:02:09]} 27. Bxg5 {[%emt 0:01:11]} hxg5 {[%emt 0:00:11]} 28. Qd2 {[%emt 0:02:17]} f6 {[%emt 0:01:28]} 29. Qe2 {[%emt 0:07:30]} Rac8 {[%emt 0:02:03]} 30. Rd1 {[%emt 0:07:30]} (30. a3 $11) 30... Qxe2 $17 {[%emt 0:00:36]} 31. Rxe2 {[%emt 0:00:05][%mdl 4096] Endgame KRR-KRR} Rc4 {[%emt 0:02:34]} 32. Re4 {[%emt 0:03:31]} Rec8 {[%emt 0:00:15]} 33. Rd2 {[%emt 0:00:47]} R4c5 {[%emt 0:00:32]} (33... Ke7 $17 {[%cal Of6f5]} 34. Rde2 f5 35. gxf5 Kf6) 34. Ree2 {[%emt 0:02:08]} (34. Re3 $1 $15 {was preferrable.}) 34... Rb5 {[%emt 0:01:09]} 35. Rd3 {[%emt 0:01:41]} Rcc5 {[%emt 0:01:28]} 36. Red2 {[%emt 0:00:22]} Rc4 {[%emt 0:00:11]} 37. Re2 {[%emt 0:00:49]} Rd4 {[%emt 0:03:16]} 38. Rxd4 {[%emt 0:03:12]} exd4 $15 {[%emt 0:00:16][%cal Be5d4,Bd4d3,Bd3d2][%mdl 32] KR-KR} 39. Re4 {[%emt 0:00:26]} Rxd5 {[%emt 0:00:14] ...Re5 is the strong threat.} 40. Kc1 {[%emt 0:01:36]} d3 {[%emt 0:00:32]} 41. c3 {[%emt 0:01:12]} bxc3 {[%emt 0:01:40]} 42. bxc3 {[%emt 0:00:06]} d2+ $1 {[%emt 0:00:50]} 43. Kd1 {[%emt 0:00:05]} Rd3 {[%emt 0:00:04][%csl LRc3,LRf3]} 44. Ra4 {[%emt 0:00:44]} Rxc3 {[%emt 0:23:45] Black is more active.} (44... Ke6 $17 45. Rxa5 Rxf3) 45. Kxd2 $2 {[%emt 0:00:10]} ({White has to play} 45. Rxa5 $15 Rxf3 46. Ra7+ Ke6 47. Rxg7) 45... Rxf3 $19 {[%emt 0:00:21]} 46. Rxa5 {[%emt 0:00:06]} Ke7 {[%emt 0:01:08]} (46... Rf4 $19 {White must now prevent ...Ke7.} 47. Ra7+ Ke6) 47. Ra7+ $15 {[%emt 0:00:14]} Kf8 {[%emt 0:00:08]} 48. Ra8+ {[%emt 0:00:57]} Kf7 {[%emt 0:00:29] And now ...Rf4 would win.} 49. Ra7+ {[%emt 0:00:11]} Kg8 {[%emt 0:00:12]} 50. Ra4 {[%emt 0:02:01]} Kh7 {[%emt 0:01:01]} 51. Rd4 $2 {[%emt 0:02:25] [#] Black continues to play with concentration.} (51. Ke2 $15 Rc3 52. Rd4) 51... Ra3 $1 $19 {[%emt 0:00:24]} 52. Rxd6 $2 {[%emt 0:00:45]} (52. Ke2 {was called for.}) 52... Ra4 {[%emt 0:00:05]} 53. Ke3 {[%emt 0:01:48]} (53. Kc3 $142 Rxg4 54. Kb3) 53... Rxg4 {[%emt 0:00:09]} 54. Rd4 {[%emt 0:03:45]} Rg3+ {[%emt 0:00:15]} 55. Kf2 {[%emt 0:01:28]} Ra3 {[%emt 0:00:05] aiming for ...Kh6.} 56. Rd2 {[%emt 0:00:03]} (56. Rd8 $142) 56... Kh6 {[%emt 0:00:03]} 57. Kg2 {[%emt 0:00:12]} Kxh5 {[%emt 0:00:05] ( -> ...f5)} 58. Kh2 {[%emt 0:00:04]} f5 {[%emt 0:00:12][%cal Bf6f5,Bf5f4,Bf4f3,Bf3f2][%mdl 32] Black mates.} 59. Kg2 {[%emt 0:00:04]} f4 {[%emt 0:00:09]} 60. Kh2 {[%emt 0:00:14]} g4 {[%emt 0:00:41][%cal Bg5g4,Bg4g3][%mdl 32]} 61. Kg1 {[%emt 0:00:30]} g3 {[%emt 0:00:26]} 62. Rd7 {[%emt 0:01:38]} g5 {[%emt 0:00:21]} 63. Rd2 {[%emt 0:00:28]} f3 {[%emt 0:00:34]} 64. Rb2 {[%emt 0:00:44]} Kg4 {[%emt 0:00:15]} 65. Rc2 {[%emt 0:00:31]} Kh3 {[%emt 0:00:08]} 66. Rg2 {[%emt 0:00:57]} Re3 {[%emt 0:00:32][%cal Re3e1]} 67. Rf2 {[%emt 0:01:15]} Re1+ {[%emt 0:00:05]} 68. Rf1 {[%emt 0:00:05]} f2+ {[%emt 0:00:02]} 69. Kh1 {[%emt 0:00:05]} g2# {[%emt 0:00:02] Weighted Error Value: White=0.86/Black=0.28 (precise)} 0-1

[Event "34th MPL National U14G-ch 2022"]
[Site "Ahmedabad"]
[Date "2022.05.12"]
[Round "8.3"]
[White "Sneha Halder"]
[Black "Rajanya Datta"]
[Result "0-1"]
[ECO "A01"]
[WhiteElo "1557"]
[BlackElo "1589"]
[Annotator "NA RC COMBH"]
[PlyCount "78"]
[EventDate "2022.05.09"]
[EventType "swiss"]
[EventCountry "IND"]
[SourceTitle "playchess.com"]
[Source "ChessBase"]
[SourceQuality "1"]
[TimeControl "5400+30"]

1. b3 {[%emt 0:00:13]} d5 {[%emt 0:00:31]} 2. Bb2 {[%emt 0:02:02]} Nf6 {[%emt 0:01:33]} 3. g3 {[%emt 0:01:10]} Bf5 {[%emt 0:00:26]} 4. Nf3 {[%emt 0:00:15]} h6 {[%emt 0:00:56]} 5. Bg2 {[%emt 0:03:30]} Nbd7 {[%emt 0:03:08]} 6. d3 {[%emt 0:02:10]} e6 {[%emt 0:01:44]} 7. Nbd2 {[%emt 0:01:05]} Be7 {[%emt 0:03:01]} 8. e3 {[%emt 0:01:24]} O-O {[%emt 0:01:59]} 9. Qe2 {[%emt 0:02:31]} Bh7 {[%emt 0:02:11]} 10. h4 {[%emt 0:03:20]} c5 {[%emt 0:03:15]} 11. e4 {[%emt 0:02:30]} dxe4 {[%emt 0:08:22]} 12. dxe4 {[%emt 0:00:42]} Qc7 {[%emt 0:00:15]} 13. Ng5 {[%emt 0:03:59]} Bg6 {[%emt 0:03:56]} 14. Nh3 {[%emt 0:01:22]} Bh5 {[%emt 0:09:34]} 15. Bf3 {[%emt 0:06:37]} Bxf3 {[%emt 0:00:24]} 16. Qxf3 {[%emt 0:01:03]} b5 {[%emt 0:00:41]} 17. g4 {[%emt 0:03:10]} Ne5 {[%emt 0:05:45]} 18. Qg3 {[%emt 0:00:10]} Nfxg4 {[%emt 0:00:38]} 19. f4 {[%emt 0:00:07]} Ng6 {[%emt 0:12:06]} 20. Qxg4 {[%emt 0:01:12]} Bxh4+ {[%emt 0:00:05]} 21. Ke2 {[%emt 0:00:49]} c4 {[%emt 0:00:25]} 22. bxc4 {[%emt 0:00:17]} bxc4 {[%emt 0:00:04]} 23. Bc3 {[%emt 0:00:03]} Qe7 {[%emt 0:05:18]} 24. Ng1 {[%emt 0:06:26]} Qa3 {[%emt 0:05:20]} 25. Nb1 {[%emt 0:01:16]} Qa4 {[%emt 0:01:22]} 26. Kd2 {[%emt 0:03:17]} Rfd8+ {[%emt 0:00:37]} 27. Kc1 {[%emt 0:00:20]} Be7 {[%emt 0:02:01]} 28. a3 {[%emt 0:02:11]} e5 {[%emt 0:06:06]} 29. Nf3 {[%emt 0:07:49]} Nxf4 {[%emt 0:00:43]} 30. Nxe5 {[%emt 0:00:14]} Bg5 {[%emt 0:00:20]} 31. Nd2 {[%emt 0:01:06]} f6 {[%emt 0:04:12]} 32. Nexc4 {[%emt 0:05:41]} Rac8 {[%emt 0:00:13]} 33. Bb4 {[%emt 0:01:45]} a5 {[%emt 0:04:53]} 34. Bd6 {[%emt 0:06:10]} Rxc4 {[%emt 0:02:01]} 35. Nxc4 {[%emt 0:03:04]} Nd3+ {[%emt 0:00:10]} 36. Kb1 {[%emt 0:00:43]} Rb8+ {[%emt 0:00:15]} 37. Bb4 {[%emt 0:00:57]} Rxb4+ {[%emt 0:00:07]} 38. axb4 {[%emt 0:02:52]} Qxb4+ {[%emt 0:00:08]} 39. Ka2 {[%emt 0:00:07]} Qxc4+ {[%emt 0:00:05]} 0-1

[Event "34th MPL National U14G-ch 2022"]
[Site "Ahmedabad"]
[Date "2022.05.12"]
[Round "8.4"]
[White "Roy Aanya"]
[Black "Debapriya Manna"]
[Result "1-0"]
[ECO "B35"]
[WhiteElo "1560"]
[BlackElo "1384"]
[Annotator "NA RC COMBH"]
[PlyCount "81"]
[EventDate "2022.05.09"]
[EventType "swiss"]
[EventCountry "IND"]
[SourceTitle "playchess.com"]
[Source "ChessBase"]
[SourceQuality "1"]
[TimeControl "5400+30"]

1. e4 {[%emt 0:00:05]} c5 {[%emt 0:00:24]} 2. Nf3 {[%emt 0:00:07]} g6 {[%emt 0:00:10]} 3. d4 {[%emt 0:00:04]} cxd4 {[%emt 0:00:51]} 4. Nxd4 {[%emt 0:00:04]} Bg7 {[%emt 0:00:26]} 5. Nc3 {[%emt 0:00:11]} Nc6 {[%emt 0:00:10]} 6. Be3 {[%emt 0:00:06]} Nf6 {[%emt 0:00:30]} 7. Bc4 {[%emt 0:00:13]} Qa5 {[%emt 0:00:29]} 8. O-O {[%emt 0:00:35]} O-O {[%emt 0:00:10]} 9. Bb3 {[%emt 0:01:01]} d6 {[%emt 0:00:22]} 10. h3 {[%emt 0:00:12]} Bd7 {[%emt 0:00:09]} 11. Re1 {[%emt 0:00:22]} Nxd4 {[%emt 0:08:08]} 12. Bxd4 {[%emt 0:00:25]} Bc6 {[%emt 0:02:52]} 13. Nd5 {[%emt 0:02:31]} Bxd5 {[%emt 0:01:19]} 14. exd5 {[%emt 0:01:00]} Rae8 {[%emt 0:03:27]} 15. c4 {[%emt 0:04:01]} Nd7 {[%emt 0:08:25]} 16. Bxg7 {[%emt 0:03:45]} Kxg7 {[%emt 0:04:16]} 17. Ba4 {[%emt 0:00:35]} Qc7 {[%emt 0:02:02]} 18. Qd4+ {[%emt 0:00:47]} Kg8 {[%emt 0:01:07]} 19. Bxd7 {[%emt 0:00:50]} Qxd7 {[%emt 0:00:22]} 20. Qxa7 {[%emt 0:00:14]} Rc8 {[%emt 0:09:06]} 21. b3 {[%emt 0:02:45]} Rc5 {[%emt 0:01:38]} 22. Re2 {[%emt 0:01:52]} e5 {[%emt 0:08:00]} 23. dxe6 {[%emt 0:03:58]} fxe6 {[%emt 0:00:10]} 24. Rd1 {[%emt 0:00:57]} Rcf5 {[%emt 0:15:45]} 25. Qb6 {[%emt 0:05:17]} Rd8 {[%emt 0:04:16]} 26. Rxe6 {[%emt 0:03:24]} Qxe6 {[%emt 0:01:03]} 27. Qxd8+ {[%emt 0:00:09]} Kg7 {[%emt 0:00:14]} 28. Qxd6 {[%emt 0:00:12]} Qe2 {[%emt 0:01:26]} 29. Qd2 {[%emt 0:03:37]} Rxf2 {[%emt 0:00:40]} 30. Qxe2 {[%emt 0:00:06]} Rxe2 {[%emt 0:00:06]} 31. Rd7+ {[%emt 0:00:14]} Kg8 {[%emt 0:00:09]} 32. a4 {[%emt 0:00:23]} b6 {[%emt 0:00:26]} 33. Rd6 {[%emt 0:00:07]} b5 {[%emt 0:00:16]} 34. cxb5 {[%emt 0:00:18]} Re3 {[%emt 0:00:09]} 35. Rd8+ {[%emt 0:00:22]} Kg7 {[%emt 0:00:06]} 36. Rd7+ {[%emt 0:00:06]} Kg8 {[%emt 0:00:06]} 37. a5 {[%emt 0:00:18]} Rxb3 {[%emt 0:00:07]} 38. b6 {[%emt 0:00:05]} Rb5 {[%emt 0:00:18]} 39. Ra7 {[%emt 0:00:07]} Kf8 {[%emt 0:00:33]} 40. b7 {[%emt 0:00:07]} Ke8 {[%emt 0:00:06]} 41. Ra8+ {[%emt 0:00:06]} 1-0

[Event "34th MPL National U14G-ch 2022"]
[Site "Ahmedabad"]
[Date "2022.05.12"]
[Round "8.5"]
[White "Bhat Sannidhi Ramakrishna"]
[Black "Sanikommu Manasvi"]
[Result "1-0"]
[ECO "A48"]
[WhiteElo "1373"]
[BlackElo "1399"]
[Annotator "NA RC COMBH"]
[PlyCount "53"]
[EventDate "2022.05.09"]
[EventType "swiss"]
[EventCountry "IND"]
[SourceTitle "playchess.com"]
[Source "ChessBase"]
[SourceQuality "1"]
[TimeControl "5400+30"]

1. d4 {[%emt 0:00:04]} Nf6 {[%emt 0:00:30]} 2. Nf3 {[%emt 0:00:12]} g6 {[%emt 0:00:59]} 3. Bg5 {[%emt 0:00:17]} Bg7 {[%emt 0:00:39]} 4. Nbd2 {[%emt 0:00:23]} d6 {[%emt 0:00:57]} 5. c3 {[%emt 0:00:49]} Nbd7 {[%emt 0:01:31]} 6. e4 {[%emt 0:01:14]} O-O {[%emt 0:03:08]} 7. Be2 {[%emt 0:01:26]} h6 {[%emt 0:02:02]} 8. Bh4 {[%emt 0:01:39]} c5 {[%emt 0:02:39]} 9. O-O {[%emt 0:05:57]} b6 {[%emt 0:04:28]} 10. Re1 {[%emt 0:07:39]} Bb7 {[%emt 0:02:41]} 11. e5 {[%emt 0:04:26]} dxe5 {[%emt 0:08:57]} 12. dxe5 {[%emt 0:00:16]} Ng4 {[%emt 0:06:29]} 13. e6 {[%emt 0:11:56]} Nde5 {[%emt 0:06:10]} 14. h3 {[%emt 0:21:55]} Nxf3+ {[%emt 0:03:37]} 15. Bxf3 {[%emt 0:00:31]} Bxf3 {[%emt 0:01:12]} 16. Nxf3 {[%emt 0:00:10]} Nf6 {[%emt 0:01:16]} 17. exf7+ {[%emt 0:03:33]} Kh7 {[%emt 0:05:03]} 18. Qc2 {[%emt 0:02:01]} Qd7 {[%emt 0:04:35]} 19. Rad1 {[%emt 0:05:38]} Qf5 {[%emt 0:06:45]} 20. Qxf5 {[%emt 0:00:36]} gxf5 {[%emt 0:00:12]} 21. Rxe7 {[%emt 0:00:14]} a5 {[%emt 0:01:04]} 22. Ne5 {[%emt 0:05:03]} Rad8 {[%emt 0:01:04]} 23. Rxd8 {[%emt 0:00:14]} Rxd8 {[%emt 0:00:08]} 24. Bxf6 {[%emt 0:00:09]} Bxf6 {[%emt 0:00:10]} 25. f8=Q+ {[%emt 0:00:07]} Bxe7 {[%emt 0:00:34]} 26. Qf7+ {[%emt 0:00:09]} Kh8 {[%emt 0:00:08]} 27. Ng6# {[%emt 0:00:06]} 1-0

[Event "34th MPL National U14G-ch 2022"]
[Site "Ahmedabad"]
[Date "2022.05.12"]
[Round "8.6"]
[White "Pragnya H G"]
[Black "Krishika Garg"]
[Result "1-0"]
[ECO "B19"]
[WhiteElo "1605"]
[BlackElo "1318"]
[Annotator "NA RC COMBH"]
[PlyCount "73"]
[EventDate "2022.05.09"]
[EventType "swiss"]
[EventCountry "IND"]
[SourceTitle "playchess.com"]
[Source "ChessBase"]
[SourceQuality "1"]
[TimeControl "5400+30"]

1. e4 {[%emt 0:01:52]} c6 {[%emt 0:00:05]} 2. d4 {[%emt 0:00:06]} d5 {[%emt 0:00:05]} 3. Nc3 {[%emt 0:00:04]} dxe4 {[%emt 0:00:07]} 4. Nxe4 {[%emt 0:00:07]} Bf5 {[%emt 0:00:08]} 5. Ng3 {[%emt 0:00:04]} Bg6 {[%emt 0:00:10]} 6. h4 {[%emt 0:00:04]} h6 {[%emt 0:00:06]} 7. Nf3 {[%emt 0:00:05]} e6 {[%emt 0:00:07]} 8. h5 {[%emt 0:00:09]} Bh7 {[%emt 0:00:06]} 9. Bd3 {[%emt 0:00:05]} Bxd3 {[%emt 0:00:10]} 10. Qxd3 {[%emt 0:00:05]} Nd7 {[%emt 0:00:28]} 11. Bd2 {[%emt 0:00:16]} Ngf6 {[%emt 0:00:08]} 12. O-O-O {[%emt 0:00:08]} Bd6 {[%emt 0:01:56]} 13. Ne4 {[%emt 0:00:28]} Nxe4 {[%emt 0:00:55]} 14. Qxe4 {[%emt 0:00:06]} Nf6 {[%emt 0:00:07]} 15. Qe2 {[%emt 0:00:04]} Qc7 {[%emt 0:04:24]} 16. g3 {[%emt 0:02:46]} O-O-O {[%emt 0:02:40]} 17. c4 {[%emt 0:01:03]} Rhe8 {[%emt 0:07:56]} 18. Bc3 {[%emt 0:00:35]} Qe7 {[%emt 0:18:52]} 19. a3 {[%emt 0:03:40]} Kb8 {[%emt 0:04:27]} 20. Kb1 {[%emt 0:02:40]} Rc8 {[%emt 0:17:30]} 21. Ne5 {[%emt 0:08:00]} Red8 {[%emt 0:10:17]} 22. Rhe1 {[%emt 0:07:53]} Qc7 {[%emt 0:09:04]} 23. f4 {[%emt 0:03:34]} c5 {[%emt 0:01:34]} 24. Ka2 {[%emt 0:04:07]} Bxe5 {[%emt 0:03:39]} 25. dxe5 {[%emt 0:01:57]} Ng8 {[%emt 0:01:35]} 26. g4 {[%emt 0:01:44]} Ne7 {[%emt 0:00:25]} 27. Rd6 {[%emt 0:00:16]} Nc6 {[%emt 0:04:15]} 28. Red1 {[%emt 0:00:24]} Qe7 {[%emt 0:01:59]} 29. Qf2 {[%emt 0:01:47]} b6 {[%emt 0:00:11]} 30. Qf3 {[%emt 0:01:45]} Na5 {[%emt 0:06:32]} 31. Bxa5 {[%emt 0:00:40]} bxa5 {[%emt 0:00:01]} 32. Qb3+ {[%emt 0:00:20]} Ka8 {[%emt 0:00:35]} 33. Qb5 {[%emt 0:03:17]} Rxd6 {[%emt 0:02:28]} 34. exd6 {[%emt 0:00:39]} Qd8 {[%emt 0:00:29]} 35. d7 {[%emt 0:00:37]} Rc7 {[%emt 0:01:40]} 36. Qxa5 {[%emt 0:00:09]} Kb8 {[%emt 0:01:30]} 37. Rd6 {[%emt 0:00:57]} 1-0

[Event "34th MPL National U14G-ch 2022"]
[Site "Ahmedabad"]
[Date "2022.05.12"]
[Round "8.7"]
[White "Pournami S"]
[Black "Arushi Srichandan"]
[Result "1-0"]
[ECO "C01"]
[WhiteElo "1376"]
[BlackElo "1292"]
[Annotator "NA RC COMBH"]
[PlyCount "65"]
[EventDate "2022.05.09"]
[EventType "swiss"]
[EventCountry "IND"]
[SourceTitle "playchess.com"]
[Source "ChessBase"]
[SourceQuality "1"]
[TimeControl "5400+30"]

1. e4 {[%emt 0:00:03]} e5 {[%emt 0:00:08]} 2. Nf3 {[%emt 0:00:05]} Nf6 {[%emt 0:00:04]} 3. Nxe5 {[%emt 0:00:06]} d6 {[%emt 0:00:03]} 4. Nf3 {[%emt 0:00:06]} Nxe4 {[%emt 0:00:33]} 5. d3 {[%emt 0:00:10]} Nf6 {[%emt 0:00:03]} 6. d4 {[%emt 0:00:05]} d5 {[%emt 0:01:11]} 7. Bd3 {[%emt 0:00:04]} Be7 {[%emt 0:00:43]} 8. O-O {[%emt 0:01:07]} O-O {[%emt 0:00:32]} 9. Be3 {[%emt 0:01:16]} Bg4 {[%emt 0:00:48]} 10. Nbd2 {[%emt 0:00:53]} Nbd7 {[%emt 0:02:00]} 11. c3 {[%emt 0:01:14]} c6 {[%emt 0:01:35]} 12. Qc2 {[%emt 0:00:33]} Qc7 {[%emt 0:01:29]} 13. Rfe1 {[%emt 0:03:40]} Rfe8 {[%emt 0:02:35]} 14. h3 {[%emt 0:08:14]} Bh5 {[%emt 0:01:51]} 15. Ne5 {[%emt 0:00:41]} Bg6 {[%emt 0:12:05]} 16. f4 {[%emt 0:05:08]} Bxd3 {[%emt 0:02:02]} 17. Qxd3 {[%emt 0:00:13]} Nxe5 {[%emt 0:13:10]} 18. fxe5 {[%emt 0:02:01]} Nd7 {[%emt 0:00:15]} 19. Qf5 {[%emt 0:04:02]} f6 {[%emt 0:02:46]} 20. Bf4 {[%emt 0:06:29]} fxe5 {[%emt 0:03:48]} 21. Qe6+ {[%emt 0:01:48]} Kh8 {[%emt 0:00:31]} 22. Bxe5 {[%emt 0:00:06]} Nxe5 {[%emt 0:00:43]} 23. Rxe5 {[%emt 0:00:22]} Bf8 {[%emt 0:08:36]} 24. Qxe8 {[%emt 0:00:52]} Rxe8 {[%emt 0:00:03]} 25. Rxe8 {[%emt 0:00:07]} Qf7 {[%emt 0:00:03]} 26. Ra8 {[%emt 0:00:34]} h6 {[%emt 0:00:37]} 27. Rf1 {[%emt 0:00:55]} Qh5 {[%emt 0:00:58]} 28. Rfxf8+ {[%emt 0:00:20]} Kh7 {[%emt 0:00:03]} 29. Nf3 {[%emt 0:00:20]} Kg6 {[%emt 0:01:04]} 30. Kh2 {[%emt 0:00:23]} Qf5 {[%emt 0:07:03]} 31. Nh4+ {[%emt 0:00:10]} Kg5 {[%emt 0:00:21]} 32. Rxf5+ {[%emt 0:00:07]} Kxh4 {[%emt 0:00:03]} 33. g3# {[%emt 0:00:06]} 1-0

[Event "34th MPL National U14G-ch 2022"]
[Site "Ahmedabad"]
[Date "2022.05.12"]
[Round "8.8"]
[White "Shefali A N"]
[Black "Rout Yashita"]
[Result "0-1"]
[ECO "C54"]
[WhiteElo "1322"]
[BlackElo "1718"]
[Annotator "NA RC COMBH"]
[PlyCount "158"]
[EventDate "2022.05.09"]
[EventType "swiss"]
[EventCountry "IND"]
[SourceTitle "playchess.com"]
[Source "ChessBase"]
[SourceQuality "1"]
[TimeControl "5400+30"]

1. e4 {[%emt 0:00:18]} e5 {[%emt 0:00:57]} 2. Nf3 {[%emt 0:00:08]} Nc6 {[%emt 0:00:21]} 3. Bc4 {[%emt 0:00:08]} Bc5 {[%emt 0:00:54]} 4. c3 {[%emt 0:00:47]} Nf6 {[%emt 0:00:34]} 5. d3 {[%emt 1:31:39]} d6 {[%emt 0:00:50]} 6. Nbd2 {[%emt 0:00:00]} a6 {[%emt 0:00:19]} 7. Bb3 {[%emt 0:00:00]} Ba7 {[%emt 0:00:19]} 8. O-O {[%emt 0:00:00]} O-O {[%emt 0:00:19]} 9. Re1 {[%emt 0:00:00]} Ng4 {[%emt 0:01:38]} 10. Re2 {[%emt 0:00:00]} Kh8 {[%emt 0:00:25]} 11. h3 {[%emt 0:00:00]} Nh6 {[%emt 0:01:09]} 12. Nf1 {[%emt 0:00:00]} f5 {[%emt 0:01:12]} 13. d4 {[%emt 0:00:00]} fxe4 {[%emt 0:16:44]} 14. Rxe4 {[%emt 0:00:00]} d5 {[%emt 0:00:29]} 15. Re1 {[%emt 0:00:00]} e4 {[%emt 0:00:53]} 16. N3h2 {[%emt 0:00:00]} Be6 {[%emt 0:03:40]} 17. Ng3 {[%emt 0:00:00]} Qf6 {[%emt 0:02:39]} 18. Be3 {[%emt 0:00:00]} Na5 {[%emt 0:10:32]} 19. Qh5 {[%emt 0:00:00]} Nxb3 {[%emt 0:04:13]} 20. axb3 {[%emt 0:00:00]} Nf7 {[%emt 0:08:23]} 21. Ng4 {[%emt 0:00:00]} Bxg4 {[%emt 0:05:38]} 22. Qxg4 {[%emt 0:00:00]} Nd6 {[%emt 0:01:56]} 23. Rf1 {[%emt 0:00:00]} Rae8 {[%emt 0:08:41]} 24. Rae1 {[%emt 0:00:00]} Qe6 {[%emt 0:04:21]} 25. Qxe6 {[%emt 0:00:00]} Rxe6 {[%emt 0:00:06]} 26. Bd2 {[%emt 0:00:00]} Rfe8 {[%emt 0:03:18]} 27. Bf4 {[%emt 0:00:00]} c6 {[%emt 0:04:03]} 28. Bxd6 {[%emt 0:00:00]} Rxd6 {[%emt 0:00:14]} 29. b4 {[%emt 0:00:00]} Bb8 {[%emt 0:01:00]} 30. Nf5 {[%emt 0:00:00]} Rf6 {[%emt 0:00:44]} 31. Ne3 {[%emt 0:00:00]} Bf4 {[%emt 0:01:03]} 32. Re2 {[%emt 0:00:00]} Kg8 {[%emt 0:01:38]} 33. g3 {[%emt 0:01:33]} Bxe3 {[%emt 0:01:26]} 34. Rxe3 {[%emt 0:00:15]} Rf3 {[%emt 0:00:26]} 35. Rfe1 {[%emt 0:00:18]} Ref8 {[%emt 0:00:30]} 36. R1e2 {[%emt 0:00:50]} R8f6 {[%emt 0:00:33]} 37. Rxf3 {[%emt 0:02:24]} Rxf3 {[%emt 0:00:36]} 38. Kg2 {[%emt 0:00:38]} Rd3 {[%emt 0:01:17]} 39. h4 {[%emt 0:01:23]} Kf7 {[%emt 0:00:20]} 40. Kh3 {[%emt 0:01:00]} Kf6 {[%emt 0:00:49]} 41. Kg4 {[%emt 0:00:52]} g6 {[%emt 0:02:06]} 42. Kh3 {[%emt 0:01:27]} Kf5 {[%emt 0:01:44]} 43. Kg2 {[%emt 0:00:11]} Kg4 {[%emt 0:00:24]} 44. Rc2 {[%emt 0:01:13]} h6 {[%emt 0:00:46]} 45. Re2 {[%emt 0:00:47]} Rf3 {[%emt 0:00:57]} 46. Re1 {[%emt 0:00:41]} Kf5 {[%emt 0:02:04]} 47. Re2 {[%emt 0:01:08]} Rd3 {[%emt 0:00:41]} 48. Kh3 {[%emt 0:00:42]} h5 {[%emt 0:00:31]} 49. Kg2 {[%emt 0:01:33]} Kg4 {[%emt 0:00:06]} 50. Rc2 {[%emt 0:01:34]} g5 {[%emt 0:01:22]} 51. hxg5 {[%emt 0:00:06]} Kxg5 {[%emt 0:00:05]} 52. Re2 {[%emt 0:01:00]} Kg4 {[%emt 0:00:45]} 53. Rc2 {[%emt 0:00:39]} Rd1 {[%emt 0:01:50]} 54. Re2 {[%emt 0:00:44]} b6 {[%emt 0:00:40]} 55. Rc2 {[%emt 0:00:17]} a5 {[%emt 0:01:34]} 56. bxa5 {[%emt 0:00:47]} bxa5 {[%emt 0:00:11]} 57. Re2 {[%emt 0:01:33]} Rc1 {[%emt 0:00:46]} 58. Rd2 {[%emt 0:00:28]} a4 {[%emt 0:00:05]} 59. Re2 {[%emt 0:00:05]} Ra1 {[%emt 0:00:47]} 60. c4 {[%emt 0:00:50]} Ra2 {[%emt 0:00:16]} 61. cxd5 {[%emt 0:00:25]} cxd5 {[%emt 0:00:04]} 62. Rc2 {[%emt 0:00:11]} a3 {[%emt 0:00:20]} 63. Rc8 {[%emt 0:00:06]} Rxb2 {[%emt 0:01:04]} 64. Rg8+ {[%emt 0:00:06]} Kf5 {[%emt 0:00:07]} 65. Rf8+ {[%emt 0:00:10]} Kg6 {[%emt 0:00:04]} 66. Rg8+ {[%emt 0:00:12]} Kf7 {[%emt 0:00:05]} 67. Ra8 {[%emt 0:00:24]} a2 {[%emt 0:00:04]} 68. Ra7+ {[%emt 0:00:13]} Kg6 {[%emt 0:00:03]} 69. Ra6+ {[%emt 0:00:05]} Kg5 {[%emt 0:00:13]} 70. Ra8 {[%emt 0:00:17]} e3 {[%emt 0:00:05]} 71. Rg8+ {[%emt 0:00:04]} Kf6 {[%emt 0:00:11]} 72. Rf8+ {[%emt 0:00:10]} Kg7 {[%emt 0:00:04]} 73. Ra8 {[%emt 0:00:07]} e2 {[%emt 0:00:17]} 74. Ra7+ {[%emt 0:00:06]} Kg6 {[%emt 0:00:04]} 75. Ra6+ {[%emt 0:00:04]} Kf5 {[%emt 0:00:04]} 76. Rxa2 {[%emt 0:00:10]} Rxa2 {[%emt 0:00:05]} 77. Kh3 {[%emt 0:00:09]} e1=Q {[%emt 0:00:07]} 78. g4+ {[%emt 0:00:08]} hxg4+ {[%emt 0:00:05]} 79. Kg3 {[%emt 0:00:07]} Qxf2# {[%emt 0:00:06]} 0-1